[Event "Late-Titled-Tuesday-Blitz-April-16-2024"]
[Site "Chess.com"]
[Date "2024.04.16"]
[Round "2"]
[White "HansOnTwitch"]
[Black "Smoking_Crow"]
[Result "1-0"]
[WhiteElo "3165"]
[BlackElo "2687"]
[TimeControl "180+1"]
[EndTime "14:16:55 PDT"]
[Termination "HansOnTwitch won by resignation"]

1. e4 {[%clk 0:02:48.9]} 1... e5 {[%clk 0:02:57.7]} 2. Nf3 {[%clk 0:02:48.5]}
2... Nc6 {[%clk 0:02:56.9]} 3. Bc4 {[%clk 0:02:47.1]} 3... Nf6 {[%clk 0:02:57]}
4. d3 {[%clk 0:02:46.6]} 4... Bc5 {[%clk 0:02:57]} 5. c3 {[%clk 0:02:46.8]} 5...
d6 {[%clk 0:02:57.2]} 6. O-O {[%clk 0:02:46.9]} 6... Bb6 {[%clk 0:02:57]} 7. h3
{[%clk 0:02:45.6]} 7... h6 {[%clk 0:02:56.4]} 8. Re1 {[%clk 0:02:45.4]} 8... O-O
{[%clk 0:02:55.9]} 9. a4 {[%clk 0:02:45.7]} 9... a6 {[%clk 0:02:55.8]} 10. Nbd2
{[%clk 0:02:45.6]} 10... Ne7 {[%clk 0:02:56]} 11. d4 {[%clk 0:02:45.7]} 11...
Ng6 {[%clk 0:02:55.7]} 12. Bf1 {[%clk 0:02:45.6]} 12... c6 {[%clk 0:02:53.2]}
13. Nc4 {[%clk 0:02:44.3]} 13... Bc7 {[%clk 0:02:53]} 14. dxe5 {[%clk 0:02:44]}
14... dxe5 {[%clk 0:02:50.2]} 15. Qxd8 {[%clk 0:02:35.9]} 15... Rxd8 {[%clk
0:02:50.9]} 16. a5 {[%clk 0:02:36.2]} 16... Be6 {[%clk 0:02:50.6]} 17. g3 {[%clk
0:02:36.2]} 17... Rd7 {[%clk 0:02:37.9]} 18. Nfd2 {[%clk 0:02:07.4]} 18... Rad8
{[%clk 0:02:33.7]} 19. f3 {[%clk 0:02:05.2]} 19... Ne7 {[%clk 0:02:18.2]} 20.
Nb3 {[%clk 0:02:04]} 20... Rd1 {[%clk 0:02:03.8]} 21. Be3 {[%clk 0:02:03.8]}
21... Rxe1 {[%clk 0:01:55.8]} 22. Rxe1 {[%clk 0:02:03.2]} 22... Bc8 {[%clk
0:01:43]} 23. Nb6 {[%clk 0:01:59.4]} 23... Bxb6 {[%clk 0:01:26.1]} 24. axb6
{[%clk 0:01:53.9]} 24... Ng6 {[%clk 0:01:17.9]} 25. Kf2 {[%clk 0:01:46.8]} 25...
Nf8 {[%clk 0:01:16.8]} 26. Na5 {[%clk 0:01:43.8]} 26... Ne6 {[%clk 0:01:12.5]}
27. Bc4 {[%clk 0:01:43.6]} 27... Ne8 {[%clk 0:01:05.4]} 28. Bxe6 {[%clk
0:01:41.6]} 28... fxe6 {[%clk 0:01:05.1]} 29. Nc4 {[%clk 0:01:42.3]} 29... Nd6
{[%clk 0:00:58.5]} 30. Nxe5 {[%clk 0:01:39.5]} 30... Nf7 {[%clk 0:00:58.6]} 31.
Nc4 {[%clk 0:01:36]} 31... Kf8 {[%clk 0:00:48.6]} 32. Bc5+ {[%clk 0:01:35.6]}
32... Ke8 {[%clk 0:00:45.3]} 33. f4 {[%clk 0:01:34.4]} 33... e5 {[%clk
0:00:44.3]} 34. f5 {[%clk 0:01:34.5]} 34... Rd3 {[%clk 0:00:36.2]} 35. h4 {[%clk
0:01:34.2]} 35... h5 {[%clk 0:00:34.5]} 36. Rg1 {[%clk 0:01:30.5]} 36... Nh6
{[%clk 0:00:33.7]} 37. Ke2 {[%clk 0:01:30.5]} 37... Rd7 {[%clk 0:00:28.4]} 38.
Nxe5 {[%clk 0:01:30.4]} 38... Rd8 {[%clk 0:00:27.1]} 39. Rf1 {[%clk 0:01:27.3]}
39... Ng4 {[%clk 0:00:21.7]} 40. Nxg4 {[%clk 0:01:27.3]} 40... hxg4 {[%clk
0:00:22.6]} 41. Rf4 {[%clk 0:01:28]} 41... Kf7 {[%clk 0:00:22.2]} 42. Rxg4
{[%clk 0:01:27.7]} 42... Re8 {[%clk 0:00:20.1]} 43. Kf3 {[%clk 0:01:28]} 43...
Rd8 {[%clk 0:00:19.9]} 44. Bd4 {[%clk 0:01:28.1]} 44... Rg8 {[%clk 0:00:19.9]}
45. Rg6 {[%clk 0:01:28.2]} 45... Bd7 {[%clk 0:00:19.6]} 46. h5 {[%clk
0:01:28.4]} 46... Ke7 {[%clk 0:00:19]} 47. g4 {[%clk 0:01:27.4]} 1-0

[Event "Late-Titled-Tuesday-Blitz-April-16-2024"]
[Site "Chess.com"]
[Date "2024.04.16"]
[Round "2"]
[White "rionelG"]
[Black "FMYiLiu"]
[Result "0-1"]
[WhiteElo "2185"]
[BlackElo "2475"]
[TimeControl "180+1"]
[EndTime "14:16:58 PDT"]
[Termination "FMYiLiu won by resignation"]

1. e4 {[%clk 0:03:00.9]} 1... e6 {[%clk 0:03:00.1]} 2. d4 {[%clk 0:03:00]} 2...
d5 {[%clk 0:03:00.7]} 3. Nd2 {[%clk 0:03:00.3]} 3... c5 {[%clk 0:03:00.5]} 4.
Ngf3 {[%clk 0:03:00]} 4... cxd4 {[%clk 0:03:00.8]} 5. Nxd4 {[%clk 0:02:59.5]}
5... Nc6 {[%clk 0:02:58.8]} 6. Bb5 {[%clk 0:02:59.7]} 6... Bd7 {[%clk
0:02:58.6]} 7. Nxc6 {[%clk 0:02:59.6]} 7... bxc6 {[%clk 0:02:59.5]} 8. Bd3
{[%clk 0:02:59.6]} 8... Ne7 {[%clk 0:03:00.2]} 9. O-O {[%clk 0:02:59.2]} 9...
Ng6 {[%clk 0:03:00.9]} 10. c3 {[%clk 0:02:56.7]} 10... Be7 {[%clk 0:02:52.3]}
11. Qe2 {[%clk 0:02:53]} 11... Nf4 {[%clk 0:02:50]} 12. Qe3 {[%clk 0:02:52.9]}
12... Nxd3 {[%clk 0:02:50.1]} 13. Qxd3 {[%clk 0:02:53.8]} 13... O-O {[%clk
0:02:49.5]} 14. c4 {[%clk 0:02:52]} 14... dxe4 {[%clk 0:02:28.2]} 15. Nxe4
{[%clk 0:02:48.2]} 15... Qc7 {[%clk 0:02:26.7]} 16. Be3 {[%clk 0:02:44.4]} 16...
Rad8 {[%clk 0:02:20]} 17. Qc2 {[%clk 0:02:43.7]} 17... c5 {[%clk 0:02:13.3]} 18.
Rad1 {[%clk 0:02:26.1]} 18... f5 {[%clk 0:02:08.7]} 19. Nc3 {[%clk 0:02:15.7]}
19... f4 {[%clk 0:01:49.2]} 20. Bc1 {[%clk 0:02:10.9]} 20... f3 {[%clk
0:01:43.8]} 21. Rfe1 {[%clk 0:01:37.1]} 21... fxg2 {[%clk 0:01:31.3]} 22. Qe4
{[%clk 0:01:27.2]} 22... Bf6 {[%clk 0:00:31]} 23. Bf4 {[%clk 0:01:22]} 23... Qb6
{[%clk 0:00:20]} 24. Bg3 {[%clk 0:01:09.1]} 24... Qxb2 {[%clk 0:00:17.9]} 25.
Rxd7 {[%clk 0:01:09.1]} 25... Rxd7 {[%clk 0:00:18]} 26. Qxe6+ {[%clk 0:01:09.2]}
26... Rdf7 {[%clk 0:00:18.2]} 27. Nd5 {[%clk 0:01:09.8]} 27... Kh8 {[%clk
0:00:17.1]} 28. Bd6 {[%clk 0:01:07.1]} 28... Bd4 {[%clk 0:00:17.1]} 29. Qxf7
{[%clk 0:00:59.6]} 29... Bxf2+ {[%clk 0:00:12.6]} 30. Kxg2 {[%clk 0:00:58.9]}
30... Bxe1+ {[%clk 0:00:13.2]} 31. Kh3 {[%clk 0:00:49.9]} 31... Rxf7 {[%clk
0:00:13.2]} 0-1

[Event "Late-Titled-Tuesday-Blitz-April-16-2024"]
[Site "Chess.com"]
[Date "2024.04.16"]
[Round "2"]
[White "ferdipy"]
[Black "Manukyan_Artak"]
[Result "1/2-1/2"]
[WhiteElo "2305"]
[BlackElo "2502"]
[TimeControl "180+1"]
[EndTime "14:17:03 PDT"]
[Termination "Game drawn by repetition"]

1. e4 {[%clk 0:03:00.9]} 1... c6 {[%clk 0:02:56.8]} 2. d4 {[%clk 0:03:01.3]}
2... d5 {[%clk 0:02:55.3]} 3. exd5 {[%clk 0:03:02.2]} 3... cxd5 {[%clk
0:02:55.7]} 4. Bd3 {[%clk 0:03:03.1]} 4... Nc6 {[%clk 0:02:56]} 5. c3 {[%clk
0:03:04]} 5... e5 {[%clk 0:02:56.2]} 6. dxe5 {[%clk 0:03:02.8]} 6... Nxe5 {[%clk
0:02:55]} 7. Bb5+ {[%clk 0:03:03.3]} 7... Nc6 {[%clk 0:02:54.5]} 8. Qe2+ {[%clk
0:03:01.4]} 8... Qe7 {[%clk 0:02:53]} 9. Be3 {[%clk 0:02:58.5]} 9... Nf6 {[%clk
0:02:51.8]} 10. Nf3 {[%clk 0:02:57.4]} 10... Bg4 {[%clk 0:02:50.6]} 11. Nbd2
{[%clk 0:02:55.4]} 11... Ne4 {[%clk 0:02:43.2]} 12. O-O-O {[%clk 0:02:47]} 12...
Nxd2 {[%clk 0:02:34.1]} 13. Qxd2 {[%clk 0:02:44.9]} 13... O-O-O {[%clk
0:02:32.9]} 14. Rde1 {[%clk 0:02:15]} 14... Bxf3 {[%clk 0:02:12.7]} 15. gxf3
{[%clk 0:02:12.9]} 15... Qf6 {[%clk 0:02:09.7]} 16. Bg5 {[%clk 0:02:10.3]} 16...
Qxf3 {[%clk 0:02:03]} 17. Bxd8 {[%clk 0:02:09.9]} 17... Kxd8 {[%clk 0:02:03.5]}
18. Rhg1 {[%clk 0:01:57.9]} 18... Bd6 {[%clk 0:01:21.9]} 19. Kb1 {[%clk
0:01:47.3]} 19... Bf4 {[%clk 0:01:16.2]} 20. Qc2 {[%clk 0:01:34.5]} 20... g6
{[%clk 0:00:59.4]} 21. h3 {[%clk 0:01:28.3]} 21... Re8 {[%clk 0:00:53.3]} 22.
Rxe8+ {[%clk 0:01:22.6]} 22... Kxe8 {[%clk 0:00:54.2]} 23. Re1+ {[%clk
0:01:20.7]} 23... Kf8 {[%clk 0:00:52]} 24. Qe2 {[%clk 0:01:20.8]} 24... Qxh3
{[%clk 0:00:45.4]} 25. Qe8+ {[%clk 0:01:17.9]} 25... Kg7 {[%clk 0:00:42.9]} 26.
Bxc6 {[%clk 0:01:17.5]} 26... bxc6 {[%clk 0:00:40.8]} 27. Qxc6 {[%clk
0:01:17.6]} 27... Bd2 {[%clk 0:00:35.2]} 28. Rd1 {[%clk 0:01:10.6]} 28... Qd3+
{[%clk 0:00:34]} 29. Ka1 {[%clk 0:01:10.5]} 29... Qc2 {[%clk 0:00:34.9]} 30. Rb1
{[%clk 0:01:04.1]} 30... d4 {[%clk 0:00:35.2]} 31. c4 {[%clk 0:00:56.7]} 31...
d3 {[%clk 0:00:28.2]} 32. Qe4 {[%clk 0:00:51.1]} 32... Bc3 {[%clk 0:00:24.9]}
33. bxc3 {[%clk 0:00:43.2]} 33... Qxc3+ {[%clk 0:00:24.9]} 34. Rb2 {[%clk
0:00:43.5]} 34... Qc1+ {[%clk 0:00:25.6]} 35. Rb1 {[%clk 0:00:43.5]} 35... Qc3+
{[%clk 0:00:25.6]} 36. Rb2 {[%clk 0:00:43.4]} 36... Qc1+ {[%clk 0:00:25.8]} 37.
Rb1 {[%clk 0:00:43.5]} 37... Qc3+ {[%clk 0:00:25.2]} 1/2-1/2

[Event "Late-Titled-Tuesday-Blitz-April-16-2024"]
[Site "Chess.com"]
[Date "2024.04.16"]
[Round "2"]
[White "JackRodgers"]
[Black "AlainBruxelles"]
[Result "0-1"]
[WhiteElo "2519"]
[BlackElo "2353"]
[TimeControl "180+1"]
[EndTime "14:17:06 PDT"]
[Termination "AlainBruxelles won on time"]

1. d4 {[%clk 0:03:00.9]} 1... d5 {[%clk 0:02:59.5]} 2. Bg5 {[%clk 0:03:00.7]}
2... Nd7 {[%clk 0:02:57.9]} 3. e3 {[%clk 0:03:00.2]} 3... Ngf6 {[%clk
0:02:58.2]} 4. Nd2 {[%clk 0:02:58.1]} 4... e6 {[%clk 0:02:58.6]} 5. Ngf3 {[%clk
0:02:57.6]} 5... Be7 {[%clk 0:02:59.1]} 6. Bd3 {[%clk 0:02:56.6]} 6... c5 {[%clk
0:02:58.5]} 7. c3 {[%clk 0:02:56.2]} 7... Qb6 {[%clk 0:02:59]} 8. Rb1 {[%clk
0:02:54.4]} 8... cxd4 {[%clk 0:02:56.8]} 9. exd4 {[%clk 0:02:54.5]} 9... O-O
{[%clk 0:02:53.7]} 10. O-O {[%clk 0:02:54.1]} 10... h6 {[%clk 0:02:54.2]} 11.
Bxf6 {[%clk 0:02:50.9]} 11... Nxf6 {[%clk 0:02:53.2]} 12. Ne5 {[%clk 0:02:51.1]}
12... Nd7 {[%clk 0:02:52.8]} 13. f4 {[%clk 0:02:49.8]} 13... Nxe5 {[%clk
0:02:51.5]} 14. fxe5 {[%clk 0:02:50.1]} 14... f6 {[%clk 0:02:49.3]} 15. exf6
{[%clk 0:02:20.3]} 15... Bxf6 {[%clk 0:02:47.8]} 16. Nf3 {[%clk 0:02:20.6]}
16... e5 {[%clk 0:02:45.1]} 17. Be2 {[%clk 0:02:00.3]} 17... e4 {[%clk
0:02:43.9]} 18. Ne1 {[%clk 0:02:00.1]} 18... Bd7 {[%clk 0:02:37.2]} 19. Nc2
{[%clk 0:01:58.4]} 19... Bg5 {[%clk 0:02:34]} 20. g3 {[%clk 0:01:54.2]} 20...
Rxf1+ {[%clk 0:02:31.2]} 21. Kxf1 {[%clk 0:01:51.5]} 21... Bh3+ {[%clk
0:02:27.7]} 22. Kg1 {[%clk 0:01:50.4]} 22... Rf8 {[%clk 0:02:28.3]} 23. Nb4
{[%clk 0:01:23.2]} 23... Qf6 {[%clk 0:02:24.9]} 24. Qe1 {[%clk 0:01:19.2]} 24...
Be3+ {[%clk 0:02:11.9]} 25. Kh1 {[%clk 0:01:18.1]} 25... Qf2 {[%clk 0:02:12]}
26. Qxf2 {[%clk 0:01:05]} 26... Rxf2 {[%clk 0:02:11]} 27. Nxd5 {[%clk
0:00:34.2]} 27... Rxe2 {[%clk 0:02:09.2]} 28. Nxe3 {[%clk 0:00:33.2]} 28... Rxe3
{[%clk 0:02:09.1]} 29. Rd1 {[%clk 0:00:31.5]} 29... Re2 {[%clk 0:02:06.5]} 30.
d5 {[%clk 0:00:26.9]} 30... Kf8 {[%clk 0:02:06.3]} 31. c4 {[%clk 0:00:23.2]}
31... Ke7 {[%clk 0:02:05.7]} 32. b4 {[%clk 0:00:23.2]} 32... Rxa2 {[%clk
0:02:02.1]} 33. c5 {[%clk 0:00:22.5]} 33... e3 {[%clk 0:02:00.2]} 34. Re1 {[%clk
0:00:19.8]} 34... e2 {[%clk 0:01:58.4]} 35. Kg1 {[%clk 0:00:20.2]} 35... Rd2
{[%clk 0:01:56.1]} 36. d6+ {[%clk 0:00:19.9]} 36... Kd7 {[%clk 0:01:55.1]} 37.
Kf2 {[%clk 0:00:20.8]} 37... Bf1 {[%clk 0:01:54.3]} 38. b5 {[%clk 0:00:15.8]}
38... Rd5 {[%clk 0:01:53.3]} 39. Rc1 {[%clk 0:00:13.3]} 39... Rd1 {[%clk
0:01:51.7]} 40. c6+ {[%clk 0:00:13.3]} 40... Kxd6 {[%clk 0:01:48.6]} 41. cxb7
{[%clk 0:00:12.6]} 41... e1=Q+ {[%clk 0:01:48]} 42. Kf3 {[%clk 0:00:13.1]} 42...
Qe2+ {[%clk 0:01:42.2]} 43. Kf4 {[%clk 0:00:13.5]} 43... Rd4+ {[%clk 0:01:40.7]}
44. Kf5 {[%clk 0:00:13.9]} 44... Qe5+ {[%clk 0:01:36.4]} 45. Kg6 {[%clk
0:00:12.2]} 45... Bd3+ {[%clk 0:01:35.1]} 46. Kf7 {[%clk 0:00:11.9]} 46... Qe7+
{[%clk 0:01:30.6]} 47. Kg8 {[%clk 0:00:12.4]} 47... Qxb7 {[%clk 0:01:25.9]} 0-1

[Event "Late-Titled-Tuesday-Blitz-April-16-2024"]
[Site "Chess.com"]
[Date "2024.04.16"]
[Round "2"]
[White "Korchmar_Vasiliy"]
[Black "RianKapriaga"]
[Result "1-0"]
[WhiteElo "2705"]
[BlackElo "2297"]
[TimeControl "180+1"]
[EndTime "14:17:07 PDT"]
[Termination "Korchmar_Vasiliy won on time"]

1. e4 {[%clk 0:03:00.9]} 1... c6 {[%clk 0:02:59.3]} 2. d4 {[%clk 0:03:00.7]}
2... d5 {[%clk 0:02:59.5]} 3. exd5 {[%clk 0:03:01.6]} 3... cxd5 {[%clk
0:02:59.3]} 4. Bd3 {[%clk 0:03:02.2]} 4... Nc6 {[%clk 0:02:58.4]} 5. c3 {[%clk
0:03:02.4]} 5... Nf6 {[%clk 0:02:57.9]} 6. h3 {[%clk 0:03:03]} 6... g6 {[%clk
0:02:57]} 7. Nf3 {[%clk 0:03:02.7]} 7... Bf5 {[%clk 0:02:55]} 8. O-O {[%clk
0:03:03.1]} 8... Bg7 {[%clk 0:02:52.6]} 9. Bxf5 {[%clk 0:03:00.3]} 9... gxf5
{[%clk 0:02:52.3]} 10. Bf4 {[%clk 0:03:00.2]} 10... O-O {[%clk 0:02:50.3]} 11.
Nbd2 {[%clk 0:02:57.7]} 11... e6 {[%clk 0:02:49.6]} 12. Ne1 {[%clk 0:02:56.9]}
12... Kh8 {[%clk 0:02:47.1]} 13. Nd3 {[%clk 0:02:56.8]} 13... Ne4 {[%clk
0:02:40.8]} 14. f3 {[%clk 0:02:55.4]} 14... Nd6 {[%clk 0:02:19.3]} 15. Qe2
{[%clk 0:02:52.6]} 15... Rg8 {[%clk 0:02:15.6]} 16. Kh2 {[%clk 0:02:48.6]} 16...
Ne7 {[%clk 0:01:58.6]} 17. Kh1 {[%clk 0:02:19.1]} 17... Ng6 {[%clk 0:01:56.5]}
18. Bh2 {[%clk 0:02:19.7]} 18... Bf6 {[%clk 0:01:37.2]} 19. a4 {[%clk
0:02:16.6]} 19... Rc8 {[%clk 0:01:31.8]} 20. a5 {[%clk 0:02:15.7]} 20... Nc4
{[%clk 0:01:24.5]} 21. Nxc4 {[%clk 0:02:13.2]} 21... dxc4 {[%clk 0:01:18.4]} 22.
Nc5 {[%clk 0:02:13.6]} 22... b6 {[%clk 0:01:13.7]} 23. axb6 {[%clk 0:02:14.5]}
23... axb6 {[%clk 0:01:14.5]} 24. Nb7 {[%clk 0:02:14.6]} 24... Qd7 {[%clk
0:01:09.2]} 25. Nd6 {[%clk 0:02:15.2]} 25... Nh4 {[%clk 0:00:56.5]} 26. Nxc8
{[%clk 0:01:44]} 26... Qxc8 {[%clk 0:00:36.5]} 27. Be5 {[%clk 0:01:37.7]} 27...
Qd8 {[%clk 0:00:25.5]} 28. Ra8 {[%clk 0:01:22.9]} 28... Qxa8 {[%clk 0:00:14.9]}
29. Bxf6+ {[%clk 0:01:22.8]} 29... Rg7 {[%clk 0:00:15.2]} 30. Bxh4 {[%clk
0:01:13.9]} 30... Rg6 {[%clk 0:00:07.2]} 31. Qxc4 {[%clk 0:01:13.1]} 31... h6
{[%clk 0:00:03.7]} 32. Qe2 {[%clk 0:01:13.1]} 32... Kh7 {[%clk 0:00:02.8]} 33.
c4 {[%clk 0:01:10.5]} 33... Qa6 {[%clk 0:00:01.8]} 34. Rc1 {[%clk 0:01:07]}
34... Qa8 {[%clk 0:00:01.8]} 35. c5 {[%clk 0:01:06]} 35... bxc5 {[%clk 0:00:02]}
36. dxc5 {[%clk 0:01:06.9]} 1-0

[Event "Late-Titled-Tuesday-Blitz-April-16-2024"]
[Site "Chess.com"]
[Date "2024.04.16"]
[Round "2"]
[White "2L8IWUN"]
[Black "IsuruAlahakoon"]
[Result "0-1"]
[WhiteElo "2069"]
[BlackElo "2440"]
[TimeControl "180+1"]
[EndTime "14:17:07 PDT"]
[Termination "IsuruAlahakoon won on time"]

1. d4 {[%clk 0:03:00.9]} 1... d5 {[%clk 0:03:00.3]} 2. Nf3 {[%clk 0:02:57.5]}
2... Nf6 {[%clk 0:03:00.2]} 3. Bf4 {[%clk 0:02:43]} 3... c5 {[%clk 0:02:59.7]}
4. e3 {[%clk 0:02:41.5]} 4... Nc6 {[%clk 0:02:59.5]} 5. Nbd2 {[%clk 0:02:40.5]}
5... e6 {[%clk 0:02:58]} 6. c3 {[%clk 0:02:39.6]} 6... cxd4 {[%clk 0:02:57.4]}
7. exd4 {[%clk 0:02:38.7]} 7... Nh5 {[%clk 0:02:57.7]} 8. Bg5 {[%clk 0:02:36.3]}
8... f6 {[%clk 0:02:57.8]} 9. Be3 {[%clk 0:02:19.6]} 9... Bd6 {[%clk 0:02:57.6]}
10. Ne5 {[%clk 0:02:05]} 10... g6 {[%clk 0:02:57.1]} 11. Nxc6 {[%clk 0:02:04.4]}
11... bxc6 {[%clk 0:02:58]} 12. g3 {[%clk 0:02:02]} 12... O-O {[%clk 0:02:56]}
13. Be2 {[%clk 0:01:51.6]} 13... Ng7 {[%clk 0:02:55.5]} 14. Bh6 {[%clk
0:01:45.4]} 14... e5 {[%clk 0:02:53.9]} 15. Bxg7 {[%clk 0:01:39.9]} 15... Kxg7
{[%clk 0:02:53.7]} 16. O-O {[%clk 0:01:36.7]} 16... e4 {[%clk 0:02:43]} 17. f3
{[%clk 0:01:32.4]} 17... f5 {[%clk 0:02:42.4]} 18. fxe4 {[%clk 0:01:32.1]} 18...
dxe4 {[%clk 0:02:36.2]} 19. Nc4 {[%clk 0:01:31]} 19... Bc7 {[%clk 0:02:31.8]}
20. Ne3 {[%clk 0:01:11.8]} 20... Qg5 {[%clk 0:02:29.4]} 21. Ng2 {[%clk
0:01:10.9]} 21... Rb8 {[%clk 0:02:27]} 22. b3 {[%clk 0:01:07.6]} 22... Be6
{[%clk 0:02:07.4]} 23. Qc1 {[%clk 0:00:59.8]} 23... Qxc1 {[%clk 0:02:06.3]} 24.
Raxc1 {[%clk 0:01:00.7]} 24... g5 {[%clk 0:02:06.5]} 25. c4 {[%clk 0:00:55]}
25... f4 {[%clk 0:02:02.7]} 26. gxf4 {[%clk 0:00:51.2]} 26... gxf4 {[%clk
0:02:02.6]} 27. d5 {[%clk 0:00:51.8]} 27... Bh3 {[%clk 0:01:56.2]} 28. Rc3
{[%clk 0:00:30]} 28... Bxg2 {[%clk 0:01:51.2]} 29. Kxg2 {[%clk 0:00:30.9]} 29...
f3+ {[%clk 0:01:51.3]} 30. Bxf3 {[%clk 0:00:29.5]} 30... exf3+ {[%clk
0:01:51.4]} 31. Rcxf3 {[%clk 0:00:28.7]} 31... Rxf3 {[%clk 0:01:51.7]} 32. Rxf3
{[%clk 0:00:29.3]} 32... cxd5 {[%clk 0:01:51.9]} 33. cxd5 {[%clk 0:00:28.6]}
33... Rf8 {[%clk 0:01:48]} 34. Rc3 {[%clk 0:00:22.3]} 34... Bb6 {[%clk
0:01:46.8]} 35. Rg3+ {[%clk 0:00:18.9]} 35... Kf6 {[%clk 0:01:40.7]} 36. Rh3
{[%clk 0:00:18.7]} 36... Ke5 {[%clk 0:01:37.4]} 37. Rxh7 {[%clk 0:00:17.5]}
37... Rf2+ {[%clk 0:01:34.9]} 38. Kg3 {[%clk 0:00:17]} 38... Rxa2 {[%clk
0:01:35.2]} 39. Rh5+ {[%clk 0:00:14.3]} 39... Kd6 {[%clk 0:01:35.1]} 40. h4
{[%clk 0:00:14.1]} 40... Rb2 {[%clk 0:01:34.5]} 41. Rh8 {[%clk 0:00:11.4]} 41...
Rxb3+ {[%clk 0:01:34.1]} 42. Kf4 {[%clk 0:00:10.5]} 42... Kxd5 {[%clk
0:01:32.8]} 43. h5 {[%clk 0:00:10.8]} 43... Rh3 {[%clk 0:01:32.4]} 44. h6 {[%clk
0:00:10.6]} 44... Bd4 {[%clk 0:01:29.6]} 45. Rd8+ {[%clk 0:00:08.9]} 45... Kc4
{[%clk 0:01:29.6]} 46. Kg5 {[%clk 0:00:08.7]} 46... a5 {[%clk 0:01:24.1]} 0-1

[Event "Late-Titled-Tuesday-Blitz-April-16-2024"]
[Site "Chess.com"]
[Date "2024.04.16"]
[Round "2"]
[White "wild3000"]
[Black "chess_sharparchitect"]
[Result "1-0"]
[WhiteElo "2487"]
[BlackElo "2232"]
[TimeControl "180+1"]
[EndTime "14:17:11 PDT"]
[Termination "wild3000 won by resignation"]

1. d4 {[%clk 0:02:20.6]} 1... Nf6 {[%clk 0:02:59.2]} 2. Nf3 {[%clk 0:02:21.5]}
2... d5 {[%clk 0:02:58.4]} 3. g3 {[%clk 0:02:22.4]} 3... c5 {[%clk 0:02:52.5]}
4. Bg2 {[%clk 0:02:23.3]} 4... Nc6 {[%clk 0:02:51.6]} 5. c3 {[%clk 0:02:22.9]}
5... e6 {[%clk 0:02:49.8]} 6. O-O {[%clk 0:02:22.7]} 6... b6 {[%clk 0:02:43.4]}
7. Nbd2 {[%clk 0:02:15.5]} 7... Bb7 {[%clk 0:02:42.8]} 8. Ne5 {[%clk 0:02:14.1]}
8... Nxe5 {[%clk 0:02:36]} 9. dxe5 {[%clk 0:02:15]} 9... Nd7 {[%clk 0:02:36.5]}
10. f4 {[%clk 0:02:15]} 10... Qc7 {[%clk 0:02:23]} 11. e4 {[%clk 0:02:14.6]}
11... O-O-O {[%clk 0:02:20.5]} 12. exd5 {[%clk 0:02:14.3]} 12... exd5 {[%clk
0:02:20.1]} 13. Nb3 {[%clk 0:02:01]} 13... c4 {[%clk 0:01:43.3]} 14. Nd4 {[%clk
0:02:00.4]} 14... Nc5 {[%clk 0:01:43.9]} 15. b4 {[%clk 0:01:50.5]} 15... Nd3
{[%clk 0:01:37.4]} 16. Be3 {[%clk 0:01:37.3]} 16... Be7 {[%clk 0:01:31.1]} 17.
Nb5 {[%clk 0:01:26.3]} 17... Qd7 {[%clk 0:01:27.4]} 18. Nxa7+ {[%clk 0:01:22]}
18... Kb8 {[%clk 0:01:27]} 19. Bxb6 {[%clk 0:01:18.7]} 19... d4 {[%clk
0:01:04.5]} 20. cxd4 {[%clk 0:01:08.4]} 20... Bxg2 {[%clk 0:00:59.6]} 21. Kxg2
{[%clk 0:01:09.3]} 21... Rc8 {[%clk 0:00:48.8]} 22. b5 {[%clk 0:01:03]} 22... g5
{[%clk 0:00:45.1]} 23. fxg5 {[%clk 0:00:59.8]} 23... Bxg5 {[%clk 0:00:39.5]} 24.
Nxc8 {[%clk 0:00:54.9]} 24... Rxc8 {[%clk 0:00:37.1]} 25. Qf3 {[%clk 0:00:52.7]}
25... f6 {[%clk 0:00:19.9]} 26. exf6 {[%clk 0:00:50.1]} 26... Rf8 {[%clk
0:00:19.6]} 27. f7 {[%clk 0:00:48.8]} 27... Be7 {[%clk 0:00:14.5]} 28. a4 {[%clk
0:00:46.5]} 28... Bd6 {[%clk 0:00:12.9]} 29. Qd5 {[%clk 0:00:35.8]} 1-0

[Event "Late-Titled-Tuesday-Blitz-April-16-2024"]
[Site "Chess.com"]
[Date "2024.04.16"]
[Round "2"]
[White "Fjal"]
[Black "venturov"]
[Result "1/2-1/2"]
[WhiteElo "2321"]
[BlackElo "2518"]
[TimeControl "180+1"]
[EndTime "14:17:12 PDT"]
[Termination "Game drawn - insufficient material"]

1. Nf3 {[%clk 0:03:00.9]} 1... g6 {[%clk 0:02:58.8]} 2. g3 {[%clk 0:03:01.1]}
2... Bg7 {[%clk 0:02:58.3]} 3. Bg2 {[%clk 0:03:02]} 3... e5 {[%clk 0:02:58]} 4.
O-O {[%clk 0:03:02.9]} 4... Ne7 {[%clk 0:02:57.1]} 5. c4 {[%clk 0:02:55.6]} 5...
d5 {[%clk 0:02:56.9]} 6. d4 {[%clk 0:02:52.7]} 6... e4 {[%clk 0:02:53.8]} 7.
Nfd2 {[%clk 0:02:52.1]} 7... c6 {[%clk 0:02:52.3]} 8. Nb3 {[%clk 0:02:44.6]}
8... O-O {[%clk 0:02:51.5]} 9. cxd5 {[%clk 0:02:39.3]} 9... cxd5 {[%clk
0:02:51.2]} 10. Nc3 {[%clk 0:02:40.2]} 10... Nbc6 {[%clk 0:02:50.6]} 11. Bf4
{[%clk 0:02:39.4]} 11... a6 {[%clk 0:02:45.4]} 12. Qd2 {[%clk 0:02:37.4]} 12...
Nf5 {[%clk 0:02:42.5]} 13. Rac1 {[%clk 0:02:15.2]} 13... Nfxd4 {[%clk
0:02:41.4]} 14. Nxd4 {[%clk 0:02:14.7]} 14... Nxd4 {[%clk 0:02:42.3]} 15. e3
{[%clk 0:02:15.1]} 15... Nf3+ {[%clk 0:02:27.1]} 16. Bxf3 {[%clk 0:02:15]} 16...
exf3 {[%clk 0:02:28]} 17. Qxd5 {[%clk 0:02:15.1]} 17... Qxd5 {[%clk 0:02:13.9]}
18. Nxd5 {[%clk 0:02:14.6]} 18... Bh3 {[%clk 0:02:13.7]} 19. Rfd1 {[%clk
0:02:12.6]} 19... Bxb2 {[%clk 0:02:07.4]} 20. Rb1 {[%clk 0:01:55.7]} 20... Bg7
{[%clk 0:02:04.3]} 21. Rxb7 {[%clk 0:01:55.1]} 21... Rfd8 {[%clk 0:02:02.1]} 22.
e4 {[%clk 0:01:45.7]} 22... f5 {[%clk 0:01:58.6]} 23. Bg5 {[%clk 0:01:43.6]}
23... Rdb8 {[%clk 0:01:45.6]} 24. Rxb8+ {[%clk 0:01:36.9]} 24... Rxb8 {[%clk
0:01:46.5]} 25. exf5 {[%clk 0:01:37.4]} 25... Bxf5 {[%clk 0:01:36.3]} 26. Ne7+
{[%clk 0:01:34.2]} 26... Kf7 {[%clk 0:01:29.8]} 27. Nxf5 {[%clk 0:01:34.4]}
27... gxf5 {[%clk 0:01:30.7]} 28. h4 {[%clk 0:01:31.8]} 28... Rb2 {[%clk
0:01:22.2]} 29. a4 {[%clk 0:01:27.9]} 29... Ra2 {[%clk 0:01:15.5]} 30. Rd7+
{[%clk 0:01:28.3]} 30... Kg6 {[%clk 0:01:11.9]} 31. Rd6+ {[%clk 0:01:27.9]}
31... Kh5 {[%clk 0:01:11]} 32. Rxa6 {[%clk 0:01:24.5]} 32... Bd4 {[%clk
0:01:01.7]} 33. Be3 {[%clk 0:01:00.6]} 33... Bxe3 {[%clk 0:00:49.1]} 34. fxe3
{[%clk 0:01:01.5]} 34... Kg4 {[%clk 0:00:44.6]} 35. Ra7 {[%clk 0:01:00.5]} 35...
Kxg3 {[%clk 0:00:14.3]} 36. Rg7+ {[%clk 0:01:00.4]} 36... Kh3 {[%clk 0:00:14]}
37. Rxh7 {[%clk 0:00:58.1]} 37... Rxa4 {[%clk 0:00:09.8]} 38. Kf2 {[%clk
0:00:54.6]} 38... Rxh4 {[%clk 0:00:06.3]} 39. Rxh4+ {[%clk 0:00:53.4]} 39...
Kxh4 {[%clk 0:00:07.2]} 40. Kxf3 {[%clk 0:00:54.1]} 40... Kg5 {[%clk 0:00:07.3]}
41. e4 {[%clk 0:00:54.8]} 41... fxe4+ {[%clk 0:00:07.3]} 42. Kxe4 {[%clk
0:00:55]} 1/2-1/2